Cogmind - Beta 17 @@@ ROGUE MODE // 2026.07.30 @ 20:54:05 Player: PE-P51 Result: Self-destructed Performance ------------- Evolutions (5) 2500 Regions Visited (18) 3600 Robots Destroyed (78) 390 Value Destroyed (2720) 2720 Prototype IDs (49) 980 Alien Tech Used (0) 0 Bonus (1085) 1085 TOTAL SCORE: 11275 Bonus ------- Follower Combat Kills 185 Aligned with FarCom 300 Met Data Miner 300 Met Imprinter 300 Cogmind --------- Core Integrity 947/1000 Matter 239/300 Energy 10/100 System Corruption 0% Temperature Cool (26) Movement Hovering (150) Ox1 Location -5/Factory Parts ------- > --- POWER (1) -------- (None) > --- PROPULSION (6) --- Armored Medium Treads Thunder Leg Antigrav System > --- UTILITY (8) ------ Machine Analyzer Makeshift Transmission Jammer Advanced System Shield > --- WEAPON (2) ------- Long-range Proton Cannon (fused) > --- INVENTORY (5) ---- Improved Phase Shifter Heart of Steel Peak State ------------ > --- POWER ------------ Light Angular Momentum Engine > --- PROPULSION ------- Improved Cesium-ion Thruster Biomechanical Wings Impulse Thruster Impulse Thruster Advanced Surge Thruster > --- UTILITY ---------- Advanced Heat Sink Superbattery Improved Target Analyzer Hacking Suite Improved Hacking Suite Improved Hacking Suite System Shield > --- WEAPON ----------- Gauss Rifle Powered Hammer > --- INVENTORY -------- Improved Deuterium Engine Heart of Steel Missile Launcher [Rating: 84] Favorites ----------- Power Improved Deuterium Engine Engine Improved Deuterium Engine Power Core Light Nuclear Core Propulsion Improved Cesium-ion Thruster Treads Light Treads Leg Aluminum Leg Wheel Compact Wheel Hover Unit Combat Airjet Flight Unit Improved Cesium-ion Thruster Utility Hacking Suite Device Structural Scanner Storage Superbattery Processor Improved Targeting Computer Hackware Hacking Suite Protection Improved Light Armor Plating Weapon Heavy Laser Energy Gun Heavy Laser Energy Cannon Long-range Proton Cannon Ballistic Gun Gauss Rifle Ballistic Cannon Advanced Assault Cannon Launcher Missile Launcher Special Weapon Remote Datajack Impact Weapon Powered Hammer Slashing Weapon Ripper Piercing Weapon Makeshift Spear Special Melee Weapon Improved Datajack Build | -11 -10 -10 -10 -9 -8 -7 -7 -7 -7 -7 -7 -6 -6 -6 -6 -6 -5 -5 ------- Run | Yrd Mat Min Exi Min Mat Fac Was Fac Low Low Dat Pro Fac Low Low Zio Pro Fac Slots Evolved 10 | . . . . . 4 2 . . . . . . 2 . . . . 2 Power . | . . . . . . . . . . . . . . . . . . . Propulsion 4 | . . . . . 2 1 . . . . . . . . . . . 1 Utility 6 | . . . . . 2 1 . . . . . . 2 . . . . 1 Weapon . | . . . . . . . . . . . . . . . . . . . Parts Attached 126 | . 4 6 . . 35 22 . 12 1 2 . . 12 4 2 9 15 2 Power 14 | . . 2 . . 4 1 . 1 . 1 . . 1 . . 1 3 . Engine 8 | . . 2 . . 1 . . 1 . 1 . . 1 . . 1 1 . Core 6 | . . . . . 3 1 . . . . . . . . . . 2 . Reactor . | . . . . . . . . . . . . . . . . . . . Propulsion 37 | . . 3 . . 11 11 . 2 . . . . 4 . . 1 3 2 Treads 6 | . . . . . 4 . . . . . . . . . . . 2 . Leg 8 | . . 1 . . 6 . . . . . . . . . . . . 1 Wheel 1 | . . . . . . . . . . . . . . . . 1 . . Hover 5 | . . 2 . . 1 . . . . . . . . . . . 1 1 Flight 17 | . . . . . . 11 . 2 . . . . 4 . . . . . Utility 40 | . 2 . . . 8 5 . 5 1 . . . 6 2 1 4 6 . Device 16 | . 1 . . . 2 2 . 3 1 . . . 1 . . 2 4 . Storage 3 | . 1 . . . 1 1 . . . . . . . . . . . . Processor 6 | . . . . . 3 . . . . . . . 1 . . 1 1 . Hackware 9 | . . . . . . 2 . 2 . . . . 3 1 . 1 . . Protection 6 | . . . . . 2 . . . . . . . 1 1 1 . 1 . Artifact . | . . . . . . . . . . . . . . . . . . . Weapon 35 | . 2 1 . . 12 5 . 4 . 1 . . 1 2 1 3 3 . Energy Gun 13 | . 2 . . . 9 . . 2 . . . . . . . . . . Energy Cannon 1 | . . . . . . . . . . . . . . . . . 1 . Ballistic Gun 7 | . . 1 . . 2 . . 1 . . . . . 1 . 1 1 . Ballistic Cannon 3 | . . . . . . 2 . 1 . . . . . . . . . . Launcher 3 | . . . . . 1 . . . . 1 . . . 1 . . . . Special Weapon 2 | . . . . . . 2 . . . . . . . . . . . . Impact Weapon 2 | . . . . . . . . . . . . . 1 . . . 1 . Slashing Weapon 1 | . . . . . . . . . . . . . . . . 1 . . Piercing Weapon 2 | . . . . . . . . . . . . . . . 1 1 . . Special Melee Weapon 1 | . . . . . . 1 . . . . . . . . . . . . Unidentified Prototypes 11 | . . . . . 6 3 . . . . . . 1 . . 1 . . Corrupted Parts 1 | . . . . . . . . . . . . . . . . . 1 . System Corruption 2 | . . . . . . . . . . . . . . . . . 2 . Parts Lost 47 | . . 2 . . 12 3 . 3 . . . 1 . 4 1 3 15 3 Power 7 | . . 1 . . 2 1 . . . . . . . . . . 2 1 Propulsion 15 | . . 1 . . 4 . . 1 . . . . . 1 1 2 5 . Utility 16 | . . . . . 4 1 . 2 . . . 1 . 2 . . 5 1 Weapon 9 | . . . . . 2 1 . . . . . . . 1 . 1 3 1 Highest Loss Streak 11 | . . 1 . . 5 3 . 2 . . . 1 . 2 1 3 11 3 To Critical Strikes . | . . . . . . . . . . . . . . . . . . . Average Backups 7 | 6 8 9 9 10 14 5 5 5 5 4 5 5 4 4 3 3 3 2 Power . | 1 1 . . . . . . . . . . . . 1 1 . . . Propulsion 1 | 4 2 3 4 4 3 1 1 1 . . . . 1 . . . . . Utility 1 | . 1 2 2 3 2 1 2 2 2 2 3 3 . 1 . 1 1 1 Weapon 2 | 1 1 2 2 2 5 1 1 1 2 2 2 2 1 . 1 1 . . Tool/Special . | . . . . . . . . . . . . . . . . . . . Unused Backups 33 | . 6 5 1 . 9 3 1 2 1 . . 1 2 . . . . 2 Power 2 | . 1 . . . 1 . . . . . . . . . . . . . Propulsion 12 | . 4 3 . . 2 1 1 . 1 . . . . . . . . . Utility 6 | . . 2 1 . . 1 . 1 . . . . . . . . . 1 Weapon 10 | . 1 . . . 5 . . 1 . . . 1 2 . . . . . Tool/Special 3 | . . . . . 1 1 . . . . . . . . . . . 1 Average Slot Usage (%) 87 | . 97 98 100 100 89 90 100 95 100 100 92 98 99 98 99 89 57 50 Engine 6 | . 14 12 14 14 4 . . 4 7 7 7 7 6 6 6 6 3 5 Core 1 | . . . . . 4 4 7 2 . . . . . . . . 1 . Treads 2 | . . . . . 8 . . . . . . . . . . . 1 5 Leg 3 | . 28 19 . . 6 1 . . . . . . . . . . . 4 Hover 6 | . . 8 28 28 14 . . . . . . . . . . . 1 1 Flight 14 | . . . . . . 32 38 33 38 38 38 38 32 32 32 20 5 . Device 7 | . 11 14 14 14 5 3 7 9 7 7 7 7 4 2 3 2 7 7 Storage 5 | . 14 14 14 14 9 2 . . . . . . 5 2 6 6 2 . Processor 8 | . . . . . 15 16 15 9 7 7 7 5 . 6 6 11 7 5 Hackware 11 | . . . . . . 12 15 17 23 23 23 23 32 26 26 23 11 5 Protection 1 | . . . . . 2 . . . . . . . 1 7 3 1 . . Energy Gun 6 | . 14 14 14 14 12 3 . 6 7 6 3 7 3 . . . . . Ballistic Gun 5 | . 14 14 14 14 5 . . . . 3 3 7 6 4 6 5 3 5 Ballistic Cannon 1 | . . . . . . 3 7 6 7 3 . . . . . . . . Peak Build Rating 84 | 6 8 19 20 20 36 53 49 56 56 57 57 57 81 84 84 81 69 55 Average Rating 43 | 6 7 12 19 20 28 38 48 49 56 56 50 56 74 77 81 72 44 47 On Entrance 43 | 6 6 8 19 20 20 24 48 49 56 56 57 57 55 81 84 74 69 38 Avg Prop Armor Cover (%) 6 | . . . . . 6 9 . . . . . 7 . . . 3 4 8 Naked Turns . | . . . . . . . . . . . . . . . . . . . Heaviest Build 45 | 13 19 22 22 22 38 32 16 17 16 21 19 19 23 24 24 27 45 31 Greatest Support 60 | 20 20 24 24 24 60 30 27 30 26 26 26 30 32 30 30 26 27 27 Greatest Overweight (x) 14 | . . 1 . . 3 1 . 5 . . . 1 1 . . 2 14 2 Average Overweight (x) . | . . . . . . . . . . . . . . . . . 3 . Largest Inventory Capacity 15 | 8 10 10 10 10 15 15 5 5 5 5 5 5 5 5 5 5 5 5 Average Capacity 8 | 8 9 10 10 10 14 5 5 5 5 5 5 5 5 5 5 5 5 5 Most Carried 15 | 6 10 10 10 10 15 15 5 5 5 5 5 5 5 5 5 5 5 5 Average Carried 7 | 6 8 9 9 10 14 5 5 4 5 4 5 5 4 4 5 4 4 4 Final Capacity 15 | 8 10 10 10 10 15 5 5 5 5 5 5 5 5 5 5 5 5 5 Final Carried 15 | 6 10 9 10 10 15 5 5 5 5 5 5 5 5 5 5 5 5 4 Class Distribution -------------------- 35% | Hacker-Sprinter 19% | Mutant 11% | Derelict-Mutant 11% | Scavenger-Mutant 10% | Scavenger-Skirmisher 8% | Hacker-Mutant Dominant Class ---------------- Mutant | -10/Materials Mutant | -10/Mines Mutant | -10/Exiles Mutant | -9/Mines Scavenger-Mutant | -8/Materials Hacker-Sprinter | -7/Factory Hacker-Sprinter | -7/Waste Hacker-Sprinter | -7/Factory Hacker-Sprinter | -7/Lower Caves Hacker-Sprinter | -7/Lower Caves Hacker-Sprinter | -7/Data Miner Hacker-Sprinter | -6/Proximity Caves Hacker-Sprinter | -6/Factory Hacker-Sprinter | -6/Lower Caves Hacker-Sprinter | -6/Lower Caves Hacker-Sprinter | -6/Zion Derelict-Mutant | -5/Proximity Caves Derelict-Mutant | -5/Factory Resources | -11 -10 -10 -10 -9 -8 -7 -7 -7 -7 -7 -7 -6 -6 -6 -6 -6 -5 -5 ----------- Run | Yrd Mat Min Exi Min Mat Fac Was Fac Low Low Dat Pro Fac Low Low Zio Pro Fac Matter Collected 2918 | 181 51 97 . 2 599 200 . 460 31 223 . . 133 527 70 105 239 . Remotely . | . . . . . . . . . . . . . . . . . . . Salvage Created 3263 | . 108 94 . . 1446 185 . 509 . 145 . . 196 256 182 . 142 . Parts 124 | . 8 2 . . 62 7 . 21 . 6 . . 6 5 1 . 6 . Haulers Intercepted 7 | . . . . . 3 2 . 2 . . . . . . . . . . Recyclers Shooed 5 | . . 1 . . 2 . . 2 . . . . . . . . . . Parts Field Recycled . | . . . . . . . . . . . . . . . . . . . Retrieved Matter . | . . . . . . . . . . . . . . . . . . . Parts Self-Destructed 25 | . . . . . . . . . . 3 . . . 7 6 1 8 . Prevented 2 | . . . . . . . . . . 2 . . . . . . . . Parts Restored . | . . . . . . . . . . . . . . . . . . . Kills | -11 -10 -10 -10 -9 -8 -7 -7 -7 -7 -7 -7 -6 -6 -6 -6 -6 -5 -5 ------- Run | Yrd Mat Min Exi Min Mat Fac Was Fac Low Low Dat Pro Fac Low Low Zio Pro Fac Combat Hostiles Destroyed 59 | . 4 2 . . 24 3 . 4 . 4 . . 4 9 . . 5 . Melee 1 | . . . . . . . . . . . . . . . . . 1 . Guns 37 | . 4 2 . . 24 1 . 3 . . . . . 1 . . 2 . Cannons 3 | . . . . . . 2 . 1 . . . . . . . . . . AOE 15 | . . . . . . . . . . 3 . . 4 7 . . 1 . Classes Destroyed 14 | . 2 . . . 6 . . 2 . . . . 1 2 1 . . . Worker 4 | . . . . . . . . 1 . . . . 3 . . . . . Hauler 7 | . . . . . 3 2 . 2 . . . . . . . . . . Recycler 6 | . . . . . 2 . . 4 . . . . . . . . . . Mechanic 1 | . . . . . 1 . . . . . . . . . . . . . Operator 1 | . . . . . 1 . . . . . . . . . . . . . Swarmer 13 | . 2 . . . 3 . . . . 3 . . . 2 . . 3 . Grunt 26 | . 2 2 . . 14 2 . 1 . . . . 3 . . . 2 . Brawler 1 | . . . . . . . . . . . . . 1 . . . . . Duelist 1 | . . . . . 1 . . . . . . . . . . . . . Sentry 11 | . . . . . 6 1 . 2 . 1 . . . 1 . . . . Hunter 2 | . . . . . . . . . . . . . . 2 . . . . Programmer 1 | . . . . . . . . 1 . . . . . . . . . . Decomposer 1 | . . . . . . . . . . . . . . . 1 . . . Tinkerer 1 | . . . . . . . . . . . . . . . 1 . . . Thug 3 | . . . . . . . . . . . . . . 3 . . . . Mutant 1 | . . . . . . . . . . . . . . 1 . . . . Best Kill Streak 5 | . 2 2 . . 5 4 . 2 . 3 . . 5 5 . . 2 . Combat Bots Only 5 | . 2 2 . . 4 2 . 1 . 3 . . 4 5 . . 2 . Max Kills in Single Turn 5 | . 1 1 . . 2 1 . 2 . 1 . . 5 2 1 . 1 . Gunslinging . | . . . . . . . . . . . . . . . . . . . Exploded 4 | . . . . . . . . . . 1 . . 4 2 . . 1 . Melee 1 | . . . . . . . . . . . . . . . . . 1 . Uniques/NPCs Destroyed . | . . . . . . . . . . . . . . . . . . . Combat | -11 -10 -10 -10 -9 -8 -7 -7 -7 -7 -7 -7 -6 -6 -6 -6 -6 -5 -5 -------- Run | Yrd Mat Min Exi Min Mat Fac Was Fac Low Low Dat Pro Fac Low Low Zio Pro Fac Hostile Shots Fired 678 | . 13 17 . . 215 55 . 82 . 40 . 10 . 107 21 12 91 15 Missed 242 | . 6 1 . . 51 24 . 44 . 19 . 3 . 54 10 2 26 2 Hits 436 | . 7 16 . . 164 31 . 38 . 21 . 7 . 53 11 10 65 13 Melee 13 | . . 2 . . 3 . . . . . . . . . . . 8 . Projectile 423 | . 7 14 . . 161 31 . 38 . 21 . 7 . 53 11 10 57 13 AOE 4 | . . 4 . . . . . . . . . . . . . . . . Critical Strikes 14 | . . . . . 10 1 . . . . . 1 . . 1 . 1 . Damage Taken 6790 | . 91 398 . . 2451 380 . 378 . 193 . 104 . 828 190 175 1361 241 Core 1195 | . 15 18 . . 433 81 . 45 . 24 . . . 153 14 74 285 53 Absorbed by Shields . | . . . . . . . . . . . . . . . . . . . Regen/Repaired (Parts) 79 | . . . . . . . . . . . . . 67 . . 12 . . Core Remaining (%) 64 | 100 . . . 86 21 . . . . . . 78 . . . . 38 . Volleys Fired 280 | 1 16 12 . . 113 30 . 41 . 8 . . 2 38 . . 9 10 Largest 2 | 2 2 2 . . 2 2 . 2 . 1 . . 2 1 . . 1 2 Hottest 138 | 70 70 83 . . 138 61 . 120 . 80 . . 108 36 . . 36 111 Shots Fired 432 | 2 32 24 . . 206 33 . 59 . 8 . 1 4 38 . . 11 14 Gun 334 | 2 32 24 . . 206 7 . 20 . 5 . 1 4 17 . . 7 9 Cannon 68 | . . . . . . 22 . 39 . . . . . . . . 2 5 Launcher 26 | . . . . . . . . . . 3 . . . 21 . . 2 . Special 4 | . . . . . . 4 . . . . . . . . . . . . Kinetic 193 | 1 16 12 . . 66 22 . 41 . . . . 2 17 . . 7 9 Thermal 205 | 1 16 12 . . 140 10 . 18 . 5 . 1 2 . . . . . Explosive 23 | . . . . . . . . . . . . . . 21 . . 2 . Electromagnetic 10 | . . . . . . . . . . 3 . . . . . . 2 5 Robot Hit Streak 24 | 2 8 5 . . 12 10 . 16 . 13 . . . 24 . . 3 4 Robot Miss Streak 5 | . 4 1 . . 3 3 . 3 . 1 . . . 1 . . 5 2 Penetration Max 1 | . . . . . . 1 . . . . . . . . . . . . Secondary Targets 2 | . . . . . 2 . . . . . . . . . . . . . Max Gunslinging Chain 1 | . . . . . 1 . . . . . . . . . . . . . Shots Hit Robots 322 | 2 18 18 . . 152 27 . 41 . 5 . . 2 31 6 3 10 7 Core Hits 149 | 1 10 8 . . 53 8 . 21 . 6 . . 4 27 4 . 6 1 Critical Kills 2 | . . . . . . . . . . . . . . . 1 . 1 . Critical Parts Destroyed 4 | . . . . . . . . . . . . . . 1 1 . 2 . Critical Strikes 19 | . 3 1 . . 4 2 . 2 . . . . . 1 3 . 3 . Burn 9 | . 3 1 . . 4 1 . . . . . . . . . . . . Blast 3 | . . . . . . 1 . 2 . . . . . . . . . . Smash 6 | . . . . . . . . . . . . . . 1 2 . 3 . Impale 1 | . . . . . . . . . . . . . . . 1 . . . Melee Attacks 77 | . . . . . . 4 . . . . . . 11 4 17 4 37 . Impact 44 | . . . . . . . . . . . . . 11 4 6 . 23 . Slashing 17 | . . . . . . . . . . . . . . . . 3 14 . Piercing 12 | . . . . . . . . . . . . . . . 11 1 . . Sneak Attacks 8 | . . . . . . 4 . . . . . . 2 . 2 . . . Combat Hostiles . | . . . . . . . . . . . . . . . . . . . Follow-up Attacks . | . . . . . . . . . . . . . . . . . . . Damage Inflicted 8972 | 21 190 269 . . 2745 612 . 1042 . 264 . . 714 1746 520 126 574 149 Guns 4263 | 21 190 269 . . 2733 118 . 409 . 140 . . . 246 . . 61 76 Cannons 1188 | . . . . . . 482 . 633 . . . . . . . . . 73 Explosions 2378 | . . . . . . . . . . 124 . . 597 1387 . . 270 . Melee 1119 | . . . . . . . . . . . . . 117 113 520 126 243 . Ramming 12 | . . . . . 12 . . . . . . . . . . . . . Kinetic 2553 | 9 61 157 . . 785 482 . 676 . . . . . 246 . . 61 76 Thermal 3434 | 12 129 112 . . 1948 130 . 366 . 140 . . 597 . . . . . Explosive 1657 | . . . . . . . . . . . . . . 1387 . . 270 . Electromagnetic 197 | . . . . . . . . . . 124 . . . . . . . 73 Impact 758 | . . . . . . . . . . . . . 117 113 314 . 214 . Slashing 155 | . . . . . . . . . . . . . . . . 126 29 . Piercing 206 | . . . . . . . . . . . . . . . 206 . . . Highest Corruption 20 | . . . . . 1 . 7 7 6 6 6 6 . 1 1 1 20 . Average Corruption 5 | . . . . . 1 . 7 4 6 6 6 6 . 1 1 1 15 . Corruption Purged 3 | . . . . . . . . 3 . . . . . . . . . . Corruption Blocked . | . . . . . . . . . . . . . . . . . . . Effects 104 | . . . . . 14 . . 18 7 9 2 5 . . 5 1 43 . Message Errors 27 | . . . . . 8 . . 5 . 3 1 . . . . . 10 . Matter Fused 29 | . . . . . 2 . . 5 4 2 . 2 . . 2 . 12 . Heat Flow Errors 10 | . . . . . 1 . . . 1 3 . . . . . 1 4 . Energy Discharges 9 | . . . . . 1 . . 2 1 . . . . . 1 . 4 . Parts Rejected 1 | . . . . . . . . . . 1 . . . . . . . . Parts Fused 2 | . . . . . 1 . . . . . . . . . . . 1 . Data Loss (minor) 17 | . . . . . 1 . . 4 1 . 1 2 . . 2 . 6 . Data Loss (major) 4 | . . . . . . . . . . . . . . . . . 4 . Misfires 5 | . . . . . . . . 2 . . . 1 . . . . 2 . Overload Shots . | . . . . . . . . . . . . . . . . . . . Overflow Damage 590 | . . . . . . 20 . 26 . . . . 146 83 200 . 115 . Projectiles 46 | . . . . . . 20 . 26 . . . . . . . . . . Explosions 118 | . . . . . . . . . . . . . 94 21 . . 3 . Melee 426 | . . . . . . . . . . . . . 52 62 200 . 112 . Knockbacks 7 | . . . . . . 2 . 2 . . . . 1 1 . . 1 . Impact 3 | . . . . . . . . . . . . . 1 1 . . 1 . Kinetic 4 | . . . . . . 2 . 2 . . . . . . . . . . Secondary . | . . . . . . . . . . . . . . . . . . . Self-Inflicted Damage 81 | . . . . . 1 . . . . . . . . 23 . . 57 . Shots 3 | . . . . . . . . . . . . . . 1 . . 2 . Rammed 3 | . . . . . 3 . . . . . . . . . . . . . Targets Rammed 3 | . . . . . 3 . . . . . . . . . . . . . Kicked . | . . . . . . . . . . . . . . . . . . . Crushed . | . . . . . . . . . . . . . . . . . . . Highest Temperature 343 | 30 136 190 . . 273 56 133 258 78 298 122 343 124 36 25 238 171 68 Average Temperature 62 | 18 51 58 . . 80 23 57 72 34 80 53 68 43 7 3 120 64 38 Received Heat Transfer 2477 | . 45 90 . . 1287 207 . 123 . 54 . 331 . 150 55 . 135 . Effects 9 | . . . . . 6 . . 2 . . . 1 . . . . . . Energy Bleed 1 | . . . . . 1 . . . . . . . . . . . . . Interference 7 | . . . . . 5 . . 2 . . . . . . . . . . Matter Decay 1 | . . . . . . . . . . . . 1 . . . . . . Siege Activations . | . . . . . . . . . . . . . . . . . . . Martial Activations . | . . . . . . . . . . . . . . . . . . . Shielding Activations . | . . . . . . . . . . . . . . . . . . . Robots Disrupted . | . . . . . . . . . . . . . . . . . . . Combat Hostiles . | . . . . . . . . . . . . . . . . . . . Robots Corrupted 4 | . . . . . . . . . . . . . 1 1 1 . 1 . Combat Hostiles 2 | . . . . . . . . . . . . . . 1 . . 1 . Parts Fried 4 | . . . . . . . . . . . . . 2 1 1 . . . Impact Corruptions 12 | . . . . . . . . . . . . . 2 3 4 . 3 . Robots Melted 1 | . . . . . . . . . . 1 . . . . . . . . Combat Hostiles 1 | . . . . . . . . . . 1 . . . . . . . . Parts Melted 13 | . 1 . . . 8 2 . 2 . . . . . . . . . . Heat Transferred 7149 | 37 592 407 . . 4218 370 . 800 . 325 . . 400 . . . . . Parts Sabotaged . | . . . . . . . . . . . . . . . . . . . Parts Stolen . | . . . . . . . . . . . . . . . . . . . Parts Stripped . | . . . . . . . . . . . . . . . . . . . Power Chain Reactions . | . . . . . . . . . . . . . . . . . . . Alert | -11 -10 -10 -10 -9 -8 -7 -7 -7 -7 -7 -7 -6 -6 -6 -6 -6 -5 -5 ------- Run | Yrd Mat Min Exi Min Mat Fac Was Fac Low Low Dat Pro Fac Low Low Zio Pro Fac Maximum Alert Level 1 | . . . . . . . . . . . . . 1 . . . . . Low Security (%) 99 | 100 100 100 . 100 100 100 100 100 . . . . 88 . . . . 100 Level 1 . | . . . . . . . . . . . . . 11 . . . . . Level 2 . | . . . . . . . . . . . . . . . . . . . Level 3 . | . . . . . . . . . . . . . . . . . . . Level 4 . | . . . . . . . . . . . . . . . . . . . Level 5 . | . . . . . . . . . . . . . . . . . . . High Security . | . . . . . . . . . . . . . . . . . . . Max Security . | . . . . . . . . . . . . . . . . . . . Peak Influence 210 | . 115 53 . . 139 56 5 186 . . . . 210 . . . . 25 Initial 56 | . . 33 . . . 56 5 3 . . . . . . . . . 25 Average 48 | . 30 8 . . 71 25 5 40 . . . . 90 . . . . 4 Influence Increases 2673 | . 157 50 . . 750 159 . 515 30 90 . 45 302 155 155 . 235 30 Destroy 0b10 Robot/C 1240 | . 80 40 . . 480 60 . 180 . 80 . . 80 100 . . 140 . Destroy 0b10 Robot/NC 105 | . . . . . 35 10 . 40 . . . . 15 . 5 . . . Destroy Leader 264 | . 20 10 . . 116 14 . 64 . 10 . . 10 10 . . 10 . Allied During Kill 30 | . . . . . . . . 20 . . . . . . . . 10 . Successful Hack 124 | . 12 . . . 23 24 . 52 . . . . 13 . . . . . Select Force Hacks 30 | . . . . . . . . . . . . . 30 . . . . . Disable Machine 180 | . . . . . 30 . . 60 . . . . 60 . . . . 30 Destroy Structure 55 | . . . . . 6 6 . 9 . . . . 34 . . . . . Partial Spotted 105 | . . . . . . 30 . 75 . . . . . . . . . . Lose Combat Pursuer 540 | . 45 . . . 60 15 . 15 30 . . 45 60 45 150 . 75 . Influence Decreases 2668 | . 72 135 . . 625 269 10 425 125 90 . 45 130 327 60 95 194 66 Entered New Map 344 | . . 52 . . . 69 10 2 36 . . . . 64 . 95 . 16 Time Decay 1889 | . 72 73 . . 525 163 . 285 89 90 . 45 130 223 60 . 94 40 Lost Part 267 | . . 10 . . 100 27 . 20 . . . . . 40 . . 60 10 Lost Ally 110 | . . . . . . 10 . 60 . . . . . . . . 40 . Purge Threat 58 | . . . . . . . . 58 . . . . . . . . . . Squads Dispatched 17 | . 1 . . . 2 4 . 5 . . . . 3 . . . . 2 Investigation 7 | . . . . . 2 . . 2 . . . . 2 . . . . 1 Extermination 4 | . . . . . . 1 . 2 . . . . 1 . . . . . Reinforcement 6 | . 1 . . . . 3 . 1 . . . . . . . . . 1 Assault . | . . . . . . . . . . . . . . . . . . . Garrison . | . . . . . . . . . . . . . . . . . . . Intercept . | . . . . . . . . . . . . . . . . . . . Searches Triggered . | . . . . . . . . . . . . . . . . . . . Construction Impeded . | . . . . . . . . . . . . . . . . . . . Haulers Reinforced 2 | . . . . . . 1 . . . . . . . . . . . 1 Active Scanning Responses . | . . . . . . . . . . . . . . . . . . . Cargo Convoy Interrupts . | . . . . . . . . . . . . . . . . . . . Stealth | -11 -10 -10 -10 -9 -8 -7 -7 -7 -7 -7 -7 -6 -6 -6 -6 -6 -5 -5 --------- Run | Yrd Mat Min Exi Min Mat Fac Was Fac Low Low Dat Pro Fac Low Low Zio Pro Fac Distress Signals 9 | . 2 . . . 5 1 . 1 . . . . . . . . . . Communications Jammed 2 | . . . . . . 2 . . . . . . . . . . . . Distress Signals 2 | . . . . . . 2 . . . . . . . . . . . . Times Spotted 170 | . 9 22 . . 44 12 3 17 2 3 . 4 10 15 13 1 13 2 Peak Tracking Total 20 | . 4 20 . . 7 7 4 3 2 2 . 3 4 6 7 1 4 2 Tactical Retreats 23 | . 3 . . . 4 1 . 1 2 . . 2 2 3 2 . 3 . Traps | -11 -10 -10 -10 -9 -8 -7 -7 -7 -7 -7 -7 -6 -6 -6 -6 -6 -5 -5 ------- Run | Yrd Mat Min Exi Min Mat Fac Was Fac Low Low Dat Pro Fac Low Low Zio Pro Fac Traps Triggered 10 | . . . . . 3 1 . 5 . . . . 1 . . . . . Indirectly . | . . . . . . . . . . . . . . . . . . . Trap Hack Attempts . | . . . . . . . . . . . . . . . . . . . Triggered . | . . . . . . . . . . . . . . . . . . . Disarmed . | . . . . . . . . . . . . . . . . . . . Reprogrammed . | . . . . . . . . . . . . . . . . . . . Reused . | . . . . . . . . . . . . . . . . . . . Traps Extracted . | . . . . . . . . . . . . . . . . . . . Installed . | . . . . . . . . . . . . . . . . . . . Triggered . | . . . . . . . . . . . . . . . . . . . Machines | -11 -10 -10 -10 -9 -8 -7 -7 -7 -7 -7 -7 -6 -6 -6 -6 -6 -5 -5 ---------- Run | Yrd Mat Min Exi Min Mat Fac Was Fac Low Low Dat Pro Fac Low Low Zio Pro Fac Machines Disabled 13 | . 1 . . . 2 . . 4 . . . . 4 . . . . 2 Max in Single Turn 4 | . 1 . . . 1 . . 1 . . . . 4 . . . . 1 Garrison Access 1 | . . . . . . 1 . . . . . . . . . . . . Machines Repaired . | . . . . . . . . . . . . . . . . . . . Machines Dismantled . | . . . . . . . . . . . . . . . . . . . Machines Sabotaged . | . . . . . . . . . . . . . . . . . . . Overloaded Fab Kills . | . . . . . . . . . . . . . . . . . . . Hacking | -11 -10 -10 -10 -9 -8 -7 -7 -7 -7 -7 -7 -6 -6 -6 -6 -6 -5 -5 --------- Run | Yrd Mat Min Exi Min Mat Fac Was Fac Low Low Dat Pro Fac Low Low Zio Pro Fac Machines Accessed 42 | . 2 . 3 1 3 6 . 11 1 . 4 . 6 1 1 1 . 2 Terminals 16 | . 2 . . 1 2 4 . 5 . . . . 2 . . . . . Fabricators 6 | . . . . . . . . 3 . . . . 1 . . . . 2 Repair Stations 2 | . . . . . . . . 1 . . . . 1 . . . . . Recycling Units 1 | . . . . . . 1 . . . . . . . . . . . . Scanalyzers 5 | . . . . . 1 . . 2 . . . . 2 . . . . . Garrison Access 1 | . . . . . . 1 . . . . . . . . . . . . Total Hacks 129 | . 5 . 11 2 8 10 . 33 1 . 29 . 21 1 1 3 . 4 Successful 97 | . 3 . 11 . 5 6 . 21 1 . 29 . 15 1 1 3 . 1 Failed 32 | . 2 . . 2 3 4 . 12 . . . . 6 . . . . 3 Catastrophic 5 | . 1 . . . 1 . . 1 . . . . . . . . . 2 Database Lockouts . | . . . . . . . . . . . . . . . . . . . Manual 26 | . 7 . 1 . . 2 . 8 . . . . 3 . . 4 . 1 Terminals 45 | . 5 . . 2 6 8 . 12 . . . . 12 . . . . . Fabricators 16 | . . . . . . . . 10 . . . . 2 . . . . 4 Repair Stations 5 | . . . . . . . . 2 . . . . 3 . . . . . Recycling Units 1 | . . . . . . 1 . . . . . . . . . . . . Scanalyzers 15 | . . . . . 2 . . 9 . . . . 4 . . . . . Garrison Access 1 | . . . . . . 1 . . . . . . . . . . . . Terminal Hacks 69 | . 3 . 11 . 3 3 . 6 1 . 29 . 8 1 1 3 . . Record 21 | . . . 10 . . . . . . . 11 . . . . . . . Part Schematic 13 | . . . . . . . . . . . 10 . . . . 3 . . Robot Schematic 6 | . . . . . . 1 . . . . 5 . . . . . . . Robot Analysis 4 | . 3 . . . . . . 1 . . . . . . . . . . Prototype ID Bank 5 | . . . . . . . . 1 . . 3 . 1 . . . . . Open Door 3 | . . . . . . . . . 1 . . . . 1 1 . . . Open DSF 1 | . . . . . . . . 1 . . . . . . . . . . Level Access Points 1 | . . . . . . . . . . . . . 1 . . . . . Branch Access Points 3 | . . . . . 1 1 . 1 . . . . . . . . . . Emergency Access Points 1 | . . . . . . . . . . . . . 1 . . . . . Machine Index 1 | . . . . . . . . 1 . . . . . . . . . . Alert Level 1 | . . . . . . . . . . . . . 1 . . . . . Unreport Threat 1 | . . . . . . . . 1 . . . . . . . . . . Investigation Status 1 | . . . . . . . . . . . . . 1 . . . . . Hauler Manifests 3 | . . . . . 1 1 . . . . . . 1 . . . . . Registered Components 2 | . . . . . 1 . . . . . . . 1 . . . . . Registered Prototypes 1 | . . . . . . . . . . . . . 1 . . . . . Proto ID Catalog 1 | . . . 1 . . . . . . . . . . . . . . . Fabricator Hacks 7 | . . . . . . . . 5 . . . . 1 . . . . 1 Load Schematic 2 | . . . . . . . . 2 . . . . . . . . . . Build 5 | . . . . . . . . 3 . . . . 1 . . . . 1 Repair Station Hacks 2 | . . . . . . . . . . . . . 2 . . . . . Scan Component 1 | . . . . . . . . . . . . . 1 . . . . . Repair 1 | . . . . . . . . . . . . . 1 . . . . . Recycling Unit Hacks 1 | . . . . . . 1 . . . . . . . . . . . . Retrieve Components 1 | . . . . . . 1 . . . . . . . . . . . . Scanalyzer 11 | . . . . . 2 . . 7 . . . . 2 . . . . . Insert Component 4 | . . . . . 1 . . 3 . . . . . . . . . . Analyze 5 | . . . . . 1 . . 4 . . . . . . . . . . Retrieve Study 2 | . . . . . . . . . . . . . 2 . . . . . Garrison Access Hacks 1 | . . . . . . 1 . . . . . . . . . . . . Seal Access 1 | . . . . . . 1 . . . . . . . . . . . . Unauthorized Hacks 6 | . . . . . . 1 . 3 . . . . 2 . . . . . Terminals 1 | . . . . . . 1 . . . . . . . . . . . . Assimilate 1 | . . . . . . 1 . . . . . . . . . . . . Fabricators 3 | . . . . . . . . 3 . . . . . . . . . . Report 1 | . . . . . . . . 1 . . . . . . . . . . Liberate 1 | . . . . . . . . 1 . . . . . . . . . . Recompile 1 | . . . . . . . . 1 . . . . . . . . . . Repair Stations 1 | . . . . . . . . . . . . . 1 . . . . . Patch 1 | . . . . . . . . . . . . . 1 . . . . . Recycling Units . | . . . . . . . . . . . . . . . . . . . Scanalyzers 1 | . . . . . . . . . . . . . 1 . . . . . Extract 1 | . . . . . . . . . . . . . 1 . . . . . Garrison Access . | . . . . . . . . . . . . . . . . . . . Data Cores Recovered 1 | . . . . . . . . 1 . . . . . . . . . . Used 1 | . . . . . . . . 1 . . . . . . . . . . Hacking Detections 24 | . 2 . . 1 2 5 . 10 . . . . 2 . . . . 2 Full Trace Events 3 | . 1 . . . . . . 1 . . . . . . . . . 1 Feedback Events . | . . . . . . . . . . . . . . . . . . . Feedback Blocked . | . . . . . . . . . . . . . . . . . . . Robot Schematics Acquired 9 | . . . . . . 1 . . . . 5 . . . . 3 . . Robots Built 4 | . . . . . . . . 2 . . . . . . . . . 2 Authchips . | . . . . . . . . . . . . . . . . . . . Time 174 | . . . . . . . . 134 . . . . . . . . . 40 Total Robot Build Rating 10 | . . . . . . . . 8 . . . . . . . . . 2 Part Schematics Acquired 32 | . . . . . 1 . . 2 . . 10 . 2 . . 17 . . Parts Built 6 | . . . . . . . . 4 . . . . 2 . . . . . Authchips 1 | . . . . . . . . 1 . . . . . . . . . . Time 158 | . . . . . . . . 100 . . . . 58 . . . . . Total Part Build Rating 36 | . . . . . . . . 22 . . . . 14 . . . . . Part Studies Acquired 2 | . . . . . . . . . . . . . 2 . . . . . Parts Repaired 1 | . . . . . . . . . . . . . 1 . . . . . Time 62 | . . . . . . . . . . . . . 62 . . . . . Parts Recycled . | . . . . . . . . . . . . . . . . . . . Recycled Matter . | . . . . . . . . . . . . . . . . . . . Retrieved Matter . | . . . . . . . . . . . . . . . . . . . Retrieved Components 7 | . . . . . . 7 . . . . . . . . . . . . Parts Scanalyzed 3 | . . . . . 1 . . 2 . . . . . . . . . . Part Schematics Acquired 3 | . . . . . 1 . . 2 . . . . . . . . . . Parts Damaged 1 | . . . . . 1 . . . . . . . . . . . . . Bothacking | -11 -10 -10 -10 -9 -8 -7 -7 -7 -7 -7 -7 -6 -6 -6 -6 -6 -5 -5 ------------ Run | Yrd Mat Min Exi Min Mat Fac Was Fac Low Low Dat Pro Fac Low Low Zio Pro Fac Used RIF Installer . | . . . . . . . . . . . . . . . . . . . Robots Hacked 3 | . . . . . . 3 . . . . . . . . . . . . Non-combat 3 | . . . . . . 3 . . . . . . . . . . . . Combat . | . . . . . . . . . . . . . . . . . . . Robot Hacks Applied 3 | . . . . . . 3 . . . . . . . . . . . . no_distress 1 | . . . . . . 1 . . . . . . . . . . . . find_chute 1 | . . . . . . 1 . . . . . . . . . . . . find_recycling 1 | . . . . . . 1 . . . . . . . . . . . . Relay Couplers Released . | . . . . . . . . . . . . . . . . . . . Fabnet Peak Effective % . | . . . . . . . . . . . . . . . . . . . Robots Rewired 1 | . . . . . . 1 . . . . . . . . . . . . Allies Hacked 1 | . . . . . . . . 1 . . . . . . . . . . Hacks Repelled . | . . . . . . . . . . . . . . . . . . . Allies | -11 -10 -10 -10 -9 -8 -7 -7 -7 -7 -7 -7 -6 -6 -6 -6 -6 -5 -5 -------- Run | Yrd Mat Min Exi Min Mat Fac Was Fac Low Low Dat Pro Fac Low Low Zio Pro Fac Total Allies 8 | . . . . . . 1 . 3 . . . . . . . 2 . 2 Largest Group 2 | . . . . . . 1 . 2 . . . . . . . 2 2 2 Highest-Rated Group 74 | . . . . . . 25 . 74 . . . . . . . 71 71 20 Highest-Rated Ally 51 | . . . . . . 25 . 37 . . . . . . . 51 51 10 Total Orders . | . . . . . . . . . . . . . . . . . . . Ally Attacks 50 | . . . . . . 1 . 34 . . . . . . . 1 14 . Total Damage 858 | . . . . . . 23 . 581 . . . . . . . 36 218 . Kills 8 | . . . . . . . . 6 . . . . . . . . 2 . Allies Corrupted . | . . . . . . . . . . . . . . . . . . . Allies Melted . | . . . . . . . . . . . . . . . . . . . Intel | -11 -10 -10 -10 -9 -8 -7 -7 -7 -7 -7 -7 -6 -6 -6 -6 -6 -5 -5 ------- Run | Yrd Mat Min Exi Min Mat Fac Was Fac Low Low Dat Pro Fac Low Low Zio Pro Fac Active Infowar (turns) 6137 | . 287 510 529 188 1345 358 16 248 71 267 35 156 247 22 . 475 1096 287 Optics 1077 | . . . . . 1022 55 . . . . . . . . . . . . Sensors 798 | . . . . . . . . . 71 267 35 156 247 22 . . . . Structural 1837 | . 287 510 529 188 323 . . . . . . . . . . . . . Decoding 808 | . . . . . . . . . . . . . . . . 475 333 . T.N.C. 1080 | . . . . . 501 317 16 246 . . . . . . . . . . Machine Analysis 1050 | . . . . . . . . . . . . . . . . . 763 287 Jamming 192 | . . . . . . 30 8 14 . . . . . . . 2 . 138 Robot Analysis Total 4 | . 3 . . . . . . 1 . . . . . . . . . . Derelict Logs Recovered 13 | . . 3 . 1 . . . . 2 1 . 1 . 2 2 1 . . Drone Launches . | . . . . . . . . . . . . . . . . . . . Drone Recoveries . | . . . . . . . . . . . . . . . . . . . Exploration | -11 -10 -10 -10 -9 -8 -7 -7 -7 -7 -7 -7 -6 -6 -6 -6 -6 -5 -5 ------------- Run | Yrd Mat Min Exi Min Mat Fac Was Fac Low Low Dat Pro Fac Low Low Zio Pro Fac Turns Passed 9166 | 3 336 510 529 188 2073 358 16 880 238 267 35 156 449 487 309 576 1469 287 Spaces Moved 12629 | 1 226 342 685 240 906 790 63 1880 727 564 96 534 1237 1460 986 1236 532 124 Core 230 | . . . . . . . . . . . . . . . . . 230 . Treads 474 | . . . . . 277 . . . . . . . . . . . 94 103 Legs 524 | 1 226 202 . . 86 9 . . . . . . . . . . . . Wheels 287 | . . . . . . . . . . . . . . . . 102 185 . Hover 1641 | . . 140 685 240 543 . . . . . . . . . . . 12 21 Flight 9473 | . . . . . . 781 63 1880 727 564 96 534 1237 1460 986 1134 11 . Fastest Speed 11 | 120 120 77 77 77 74 23 20 11 19 19 19 11 12 22 24 29 99 170 Average Speed 53 | 120 120 120 77 77 145 26 20 24 19 19 19 22 23 23 24 41 244 189 Slowest Speed 750 | 120 120 190 77 77 330 190 23 26 19 19 19 94 81 24 29 164 750 250 Overloaded Moves 82 | . . . . . . . 42 17 . . . 17 6 . . . . . Propulsion Burnouts . | . . . . . . . . . . . . . . . . . . . Robots Hopped 75 | . . . . . . 27 2 29 2 . . 2 13 . . . . . Potential Cave-ins . | . . . . . . . . . . . . . . . . . . . Cave-ins Triggered . | . . . . . . . . . . . . . . . . . . . Exploration Rate (%) 59 | 2 46 91 90 49 56 22 77 40 76 66 70 73 26 99 95 87 63 4 Regions Visited 18 Branch Regions 11 Pre-discovered Areas 4 | . . 1 . . . . . . 1 . 1 . . 1 . . . . Known Exits Taken 4 | . . . . . 1 . . 1 . . . . 1 . . . 1 . Unknown Exits Taken 12 | 1 1 1 1 1 . . . . 1 1 1 1 . 1 1 1 . . Scrap Searched 22 | . . . . 2 . . . . 1 3 . 1 . 4 4 4 3 . Spaces Dug 46 | . . . . . . . . 2 . . . . 9 2 9 . 24 . Terrain Destroyed 178 | . . . . . 2 6 . 12 . . . . 42 65 9 . 42 . Melee 44 | . . . . . . . . . . . . . 9 2 9 . 24 . Projectile 20 | . . . . . 2 6 . 12 . . . . . . . . . . AOE 113 | . . . . . . . . . . . . . 33 62 . . 18 . Terrain Rammed . | . . . . . . . . . . . . . . . . . . . Walls Destroyed . | . . . . . . . . . . . . . . . . . . . Machines Disabled . | . . . . . . . . . . . . . . . . . . . Actions | -11 -10 -10 -10 -9 -8 -7 -7 -7 -7 -7 -7 -6 -6 -6 -6 -6 -5 -5 --------- Run | Yrd Mat Min Exi Min Mat Fac Was Fac Low Low Dat Pro Fac Low Low Zio Pro Fac Total 14476 | 1 262 421 687 242 1475 877 64 2213 824 713 111 567 1362 1557 1029 1289 620 162 Wait 1202 | . 8 49 . 3 355 25 . 271 97 128 12 34 92 41 25 22 16 24 Move 12473 | . 225 341 684 239 905 741 59 1821 722 563 95 530 1214 1459 985 1235 531 124 Hop 64 | . . . . . . 22 1 29 2 . . 1 9 . . . . . Pick Up 79 | . 6 5 2 . 26 10 2 4 1 4 . 1 7 3 . 6 2 . Fast Attach 60 | . 1 1 . . 15 6 . 8 . 1 2 . 3 1 . 6 13 3 Attach 30 | . 1 1 . . 8 8 . 1 . . . . 4 4 . 1 2 . Detach 5 | . . . . . 2 1 . . . . . . 1 . . . 1 . Swap 73 | . 2 4 . . 20 10 . 8 1 4 . . 10 5 2 5 2 . Drop 107 | . 3 7 1 . 28 19 2 9 1 5 2 1 9 2 . 10 7 1 Fire 280 | 1 16 12 . . 113 30 . 41 . 8 . . 2 38 . . 9 10 Melee 77 | . . . . . . 4 . . . . . . 11 4 17 4 37 . Ram 1 | . . . . . 1 . . . . . . . . . . . . . Kick . | . . . . . . . . . . . . . . . . . . . Crush 2 | . . . . . 2 . . . . . . . . . . . . . Escape Stasis 15 | . . . . . . . . 15 . . . . . . . . . . Rewire 7 | . . 1 . . . . . 6 . . . . . . . . . . Trap . | . . . . . . . . . . . . . . . . . . . Miscellaneous 1 | . . . . . . 1 . . . . . . . . . . . . Route ------- -11/Scrapyard -10/Materials -10/Mines (discovered 4 exits: [*Mat x2] / *Exi / [*Sub]) -10/Exiles (discovered 2 exits: *Min x2) -9/Mines -8/Materials (discovered 3 exits: *Fac x3) -7/Factory (discovered 3 exits: Sto / Low x2) -7/Waste -7/Factory (discovered 5 exits: *Fac x2 / Sto / *Low x2) -7/Lower Caves (discovered 2 exits: [*Low] / *Dat) -7/Lower Caves -7/Data Miner -6/Proximity Caves -6/Factory (discovered 6 exits: Fac x4 / *Low x2) -6/Lower Caves -6/Lower Caves (discovered 2 exits: *Fac / *Zio) -6/Zion (discovered 2 exits: [*Dee] / [*Pro]) -5/Proximity Caves -5/Factory (discovered 2 exits: Fac / Upp) History --------- Turn | Location | Event 4 | -11/Scrapyard | Discovered new exit (range 0) 4 | -11/Scrapyard | Entered Materials 273 | -10/Materials | Discovered new exit (range 11) 315 | -10/Materials | Build established: Mutant 340 | -10/Materials | Entered Mines 401 | -10/Mines | Discovered new exit (range 8) 481 | -10/Mines | A weapon hastily lodged in a ceiling crevice suddenly fell to the ground 546 | -10/Mines | Learned location of 1 exit from Materials 588 | -10/Mines | Discovered new exit (range 7) 629 | -10/Mines | Assembled infested the area 645 | -10/Mines | Met 8R-AWN 771 | -10/Mines | Discovered new exit (range 6) 789 | -10/Mines | Discovered new exit (range 12) 850 | -10/Mines | Entered Exiles 861 | -10/Exiles | Discovered new exit (range 15) 880 | -10/Exiles | Welcomed by 8R-AWN 891 | -10/Exiles | Met EX-HEX 936 | -10/Exiles | Met EX-DEC 952 | -10/Exiles | Visited The Gauntlet 1073 | -10/Exiles | Met EX-BIN 1179 | -10/Exiles | Aligned with FarCom system 1179 | -10/Exiles | Given EX-Vault access code 1197 | -10/Exiles | Opened EX-Vault 1205 | -10/Exiles | Found Superbattery 1220 | -10/Exiles | Warned to stay clear of 0b10 Research branches 1373 | -10/Exiles | Discovered new exit (range 10) 1379 | -10/Exiles | Left Exiles lab with Superbattery 1379 | -10/Exiles | Entered Mines 1473 | -9/Mines | Found a hidden stash of uninstalled traps 1478 | -9/Mines | Learned Materials non-interactive machine intel 1552 | -9/Mines | Discovered new exit (range 11) 1567 | -9/Mines | Entered Materials 1567 | -8/Materials | Evolved 4 slots: Propulsion x2, Utility x2 1568 | -8/Materials | Identified exit to Factory 1569 | -8/Materials | Loaded intel: 48 non-interactive machine locations 1986 | -8/Materials | Build established: Scavenger-Mutant 2624 | -8/Materials | Discovered exit to Factory (range 17) 2962 | -8/Materials | Build established: Scavenger-Skirmisher 3017 | -8/Materials | Core integrity fell below 50% 3421 | -8/Materials | Lost 5 parts (1p3n1w) 3628 | -8/Materials | Discovered exit to Factory (range 7) 3640 | -8/Materials | Entered Factory 3640 | -7/Factory | Evolved 2 slots: Propulsion x1, Utility x1 3641 | -7/Factory | Identified exit to Storage 3722 | -7/Factory | Identified exit to Lower Caves 3880 | -7/Factory | Lost 3 parts (1p1u1w) 3998 | -7/Factory | Sucked down chute 3998 | -7/Factory | Entered Waste 4004 | -7/Waste | Spotted C-40 Crusher 4010 | -7/Waste | Spotted C-40 Crusher 4010 | -7/Waste | Spotted C-40 Crusher 4011 | -7/Waste | Discovered new exit (range 16) 4011 | -7/Waste | Spotted C-40 Crusher 4012 | -7/Waste | Spotted C-40 Crusher 4013 | -7/Waste | EMP discharged 4014 | -7/Waste | Entered Factory 4016 | -7/Factory | Identified exit to DSF 4157 | -7/Factory | Build established: Hacker-Sprinter 4334 | -7/Factory | Discovered new exit (range 15) 4496 | -7/Factory | Fabricated P-60 Hacker? 4699 | -7/Factory | Fabricated Adv. Surge Thruster (x2) 4705 | -7/Factory | Fabricated Coolant Injector (x2) 4761 | -7/Factory | Discovered new exit (range 16) 4894 | -7/Factory | Entered Lower Caves 4896 | -7/Lower Caves | Learned 12 Factory zone layouts 4978 | -7/Lower Caves | Spotted B-75 Beast 5066 | -7/Lower Caves | A Derelict revealed a hidden shortcut to meet someone special 5131 | -7/Lower Caves | Discovered new exit (range 9) 5132 | -7/Lower Caves | Entered another Lower Caves area 5134 | -7/Lower Caves | Learned 12 Factory zone layouts 5214 | -7/Lower Caves | Attracted the attention of an 0b10 checkpoint 5384 | -7/Lower Caves | Discovered new exit (range 9) 5385 | -7/Lower Caves | Encountered a Warlord checkpoint 5399 | -7/Lower Caves | Entered Data Miner 5399 | -7/Data Miner | Discovered new exit (range 8) 5404 | -7/Data Miner | Met Data Miner 5409 | -7/Data Miner | Learned location of Section 7 (-2) 5409 | -7/Data Miner | Acquired the access code to Warlord's prototype stash 5412 | -7/Data Miner | Received God Mode back door access code from Data Miner 5434 | -7/Data Miner | Entered Proximity Caves 5511 | -6/Proximity Caves | Learned Factory terminal intel 5549 | -6/Proximity Caves | Spotted B-75 Beast 5588 | -6/Proximity Caves | Discovered new exit (range 6) 5590 | -6/Proximity Caves | Entered Factory 5590 | -6/Factory | Evolved 2 slots: Utility x2 5591 | -6/Factory | Identified exit to Lower Caves 5591 | -6/Factory | Identified exit to Factory 5592 | -6/Factory | Loaded intel: 24 terminal locations 5676 | -6/Factory | Fabricated Impulse Thruster? 5690 | -6/Factory | Repaired Adv. Surge Thruster? 6039 | -6/Factory | Entered Lower Caves 6062 | -6/Lower Caves | Attracted the attention of an 0b10 checkpoint 6102 | -6/Lower Caves | Learned Factory trap positions 6131 | -6/Lower Caves | Discovered new exit (range 9) 6273 | -6/Lower Caves | Attacked by a faux Warlord 6355 | -6/Lower Caves | Found Prototype Device 6526 | -6/Lower Caves | Entered another Lower Caves area 6527 | -6/Lower Caves | Encountered a Warlord checkpoint 6606 | -6/Lower Caves | Discovered exit to Factory (range 14) 6670 | -6/Lower Caves | Learned 8 Factory zone layouts 6677 | -6/Lower Caves | Entered a destroyed Warlord outpost 6786 | -6/Lower Caves | Learned location of 1 exit from Factory 6833 | -6/Lower Caves | Discovered new exit (range 7) 6835 | -6/Lower Caves | Entered Zion 6841 | -6/Zion | Acquired unknown access codes intercepted by a Zionite 6853 | -6/Zion | Discovered new exit (range 11) 6901 | -6/Zion | Found Prototype Device 6901 | -6/Zion | Identified Bomb Factory No. 2 6912 | -6/Zion | System corruption cleaned by Quarantine Array 6985 | -6/Zion | Gained Derelict followers 6991 | -6/Zion | Loaded intel: 5 derelict terminal locations 7032 | -6/Zion | Rebuked by Imprinter 7056 | -6/Zion | Opened final containment barrier to the Deep Caves 7061 | -6/Zion | Discovered new exit (range 3) 7061 | -6/Zion | Saw the warning signs outside the Deep Caves entrance 7081 | -6/Zion | Found Unknown Piercing Weapon 7085 | -6/Zion | Identified CR-A16's Pointy Stick 7211 | -6/Zion | Lost 3 parts (2n1w) 7411 | -6/Zion | Entered Proximity Caves 7411 | -5/Proximity Caves | Accompanied by 2 allies 7466 | -5/Proximity Caves | Build established: Hacker-Mutant 7732 | -5/Proximity Caves | Lost 4 parts (1p1n2w) 7964 | -5/Proximity Caves | System corruption reached 10% 7972 | -5/Proximity Caves | Core integrity fell below 50% 8013 | -5/Proximity Caves | Lost 11 parts (1p4n5u1w) 8416 | -5/Proximity Caves | Build established: Derelict-Mutant 8841 | -5/Proximity Caves | Discovered exit to Factory (range 11) 8880 | -5/Proximity Caves | Entered Factory 8880 | -5/Factory | Evolved 2 slots: Propulsion x1, Utility x1 8881 | -5/Factory | Identified exit to Upper Caves 8882 | -5/Factory | Identified exit to Factory 8883 | -5/Factory | Loaded intel: 94 trap records 9004 | -5/Factory | Watched by a mysterious "MATRIX" hacker 9044 | -5/Factory | Fabricated T-07 Excavator? 9167 | -5/Factory | Self-destructed Last Messages --------------- 09044_ >> FABRICATOR: Completed T-07 Excavator? 09067_ >> Machine Analyzer network decryption results: 09067_ Fabricator x1 09104_ Acquired Antigrav System. 09120_ Connecting with Fabricator... 09120_ ALERT: Suspicious activity at Fabricator F005. Dispatching Investigation squad. 09124_ Fabricator disabled. 09155_ Penetrated by Slug. 09158_ H-66 Slayer IFF system glitched. 09158_ Slug penetrates Wall. 09158_ Slug penetrates Manufacturing Mainframe. 09161_ Penetrated by Slug. 09161_ Imp. Deuterium Engine destroyed. 09163_ Slug penetrates Manufacturing Mainframe. 09163_ Imp. Reaction Control System destroyed. 09164_ Manufacturing Mainframe disabled. 09165_ Penetrated by Slug. 09165_ Hvy. Machine Gun destroyed. 09166_ Penetrated by Slug. Map ----- +----------------------------------------------------+ | ###########+########### ########## | | #?# ??# #????????? | | ???????????????????????????# #????????? | | ???????????????????????????# +????????? | | ^??????????????????????????# #????????? | | ???????????????????????????# #????????? | | ???????????????????????????# #????????? | | ???????????????????????????# #????????? | | ????????????????????######## #????????? | | ???????????????###### #????????? | | ?????????????? #????????? | | ?????????????? ^ #????????? | | ??????????????"""?""" #????????? | | ???????T????^?"""?""" #????????? | | ?????????????^"""?""" ######+##########????????? | | ??????????????^?? # #???????????? | | ?????????????^"""?""" ??# """" #???????????? | | ???????????^??"""?"""???# """""" #???????????? | | ??????????????"""?"""???# "" "" #???????????? | | ????????????????????????# """ #???????????? | | ????????????????????????# t #???????????? | | ????????????????????????# #???????????? | | ????????????????????????# """" """" #???????????? | | ???????????w????????????# """" """" #???????????? | | ????????????????????????# """" """" #???????????? | | ????????????????????????#@ "" """" #???????????? | | ????????????????????????# h #???????????? | | ????????????????????????##/###########???????????? | | ??????????????????????????h#?????????????????????? | | ?????????????????????????? #?????????????????????? | | ?????????????????????????? #?????????????????????? | | ?????????????????????????^? ?????????????????????? | | ???????????????????????????^??^??????????????????? | | ???????????????????????????^?????????????????????? | | ??????????????????????????? ????????????????????? | | ???????????????????????????? ????????????????????? | | ???????????????????????????? ????????????????????? | | ???????????????????????????? ????????????????????? | | ????????????????????????????##???????????????????? | | ?????????????????????????????????????????????????? | | ?????????????????????????????????????????????????? | | ?????????????????????????????????????????????????? | | ?????????????????????????????????????????????????? | | ?????????????????????????????????????????????????? | | ?????????????????????????????????????????????????? | | ?????????????????????????????????????????????????? | | ?????????????????????????????????????????????????? | | ?????????????????????????????????????????????????? | | ?????????????????????????????????????????????????? | | ?????????????????????????????????????????????????? | +----------------------------------------------------+ Best States ------------- Heat Dissipation 56 Energy Generation 19 Energy Capacity 1790 Matter Stores 300 Matter Capacity 300 Sight Range 18 Robot Scan Range 15 Terrain Scan Density 10 Jamming Range 14 Power Amplification 20 Armor Coverage 300 Evasion (%) 66 Targeting Accuracy 6 Target Analysis 6 Recoil Reduction 3 Offensive Hacking 42 Defensive Hacking 14 Authchip Count 1 Item Schematics ----------------- Cmb. Airjet | -8/Materials | Scanalyzed Adv. Surge Thruster | -7/Factory | Scanalyzed Imp. Weapon Cycler | -7/Factory | Scanalyzed Combat Drone Bay | -7/Data Miner | Free Lgt. Regenerative Plating | -7/Data Miner | Free Cld. Cesium-ion Thruster | -7/Data Miner | Free Gravity Neutralizer | -7/Data Miner | Free Force Rifle | -7/Data Miner | Free Gyrokinetic Inverter | -7/Data Miner | Free Adv. Salvage Targeting Computer | -7/Data Miner | Free Enh. Gauss Cannon | -7/Data Miner | Free Drone Bay | -7/Data Miner | Free Adv. Medium Treads | -7/Data Miner | Free Flail | -6/Factory | Extracted Med. Storage Unit | -6/Factory | Extracted Flamer | -6/Zion | Free Slug Cannon | -6/Zion | Free Arc Thrower | -6/Zion | Free Variable Charge Gun | -6/Zion | Archive IFF Parser | -6/Zion | Archive Imp. Corruption Screen | -6/Zion | Archive Focal Shield | -6/Zion | Archive Angular Momentum Engine | -6/Zion | Archive Imp. Dynamic Insulation System | -6/Zion | Archive Lgt. Fission Core | -6/Zion | Archive Adv. System Shield | -6/Zion | Archive Imp. Target Analyzer | -6/Zion | Archive Hvy. Gauss Cannon | -6/Zion | Archive Centrium Wheel | -6/Zion | Archive Imp. Trap Scanner | -6/Zion | Archive Magnetic Acceleration Cannon | -6/Zion | Archive Antigrav System | -6/Zion | Archive Robot Schematics ------------------ L-31 Rogue | -7/Factory | Hacked A-15 Conveyor | -7/Data Miner | Free H-55 Commando | -7/Data Miner | Free E-15 Imp | -7/Data Miner | Free M-14 Sweeper | -7/Data Miner | Free R-10 Processor | -7/Data Miner | Free Y-54 Guardian | -6/Zion | Archive A-02 Transporter | -6/Zion | Archive C-57 Dissector | -6/Zion | Archive Fabricated ------------ P-60 Hacker | x2 | -7/Factory | Preloaded Adv. Surge Thruster | x2 | -7/Factory | Authchip Coolant Injector | x2 | -7/Factory | Preloaded Impulse Thruster | x2 | -6/Factory | Preloaded T-07 Excavator | x2 | -5/Factory | Preloaded Repaired ---------- Adv. Surge Thruster | 25% | -6/Factory Studied --------- Lgt. Angular Momentum Engine | -6/Factory | Hacked Gauss Rifle | -6/Factory | Hacked Alien Tech Used ----------------- None Achievements -------------- None Challenges ------------ None Game ------ Seed WeldingDispersalCharger Manual? 0 Play Time 02:02:21 Cumulative 347.2 hours Start 2026.07.28 @ 21:06:14 End 2026.07.30 @ 20:54:05 Sessions 5 Manual Loads 0 Difficulty Rogue Special Mode None Game No. 430 Rogue 428 Adventurer 2 Explorer 0 Win Type - Total 4 Types 2/0/0/1/1/0/0/0/0/0 Lore% 81 Gallery% 67 Achievement% 62 Wizard Run 0 Options --------- Layout 0 ASCII 0 Keyboard 0 Movement Numpad Keybinds 0 Fullscreen 2 Font 24/Smallcaps Map View 76x50 Zoom Use 0% Tactical HUD 1 Map Filters NONE Filters NONE Steam 1 RUN: 60ff03e7-b1ba-4ee7-8012-8a6b392e642c